bitfinex/quotes_SOLUSD_20241205
["timestamp","ask_amount","ask_price","bid_price","bid_amount"]
[1733369378074,44.88561373,236.46,236.01,2.2559]
[1733369378280,127.71340743,236.4,236.01,2.2559]
[1733369378485,23.776884,236.39,236.01,2.2559]
[1733369378681,10.5761,236.38,236.02,0.84500637]
[1733369378981,23.776884,236.37,236.03,23.776884]
[1733369379176,23.776884,236.37,236.02,0.84500637]
[1733369379386,10.5761,236.38,236.02,11.43730637]
[1733369380257,10.5742,236.43,236.03,0.12549]
[1733369380567,21.1353,236.57,236.08,2.2559]
[1733369380878,21.1353,236.57,236.11,0.12549]
[1733369381081,21.1353,236.57,236.08,2.2559]
[1733369381082,17.77997874,236.51,236.13,23.902374]
[1733369381262,10.5703,236.51,236.15,23.776884]
[1733369381458,1.75114774,236.52,236.17,23.902374]
[1733369381672,10.5683,236.56,236.21,23.902374]
[1733369381874,12.3802909,236.56,236.23,23.776884]
[1733369382078,33.5164909,236.56,236.2,2.2559]
[1733369382783,10.569,236.54,236.2,2.2559]
[1733369383360,23.776884,236.53,236.2,2.2559]
[1733369383758,23.776884,236.51,236.2,2.2559]
[1733369383958,127.71340743,236.49,236.08,2.2559]
[1733369384269,23.776884,236.48,236.08,2.2559]
[1733369384957,31.7164,236.47,236.08,2.2559]
[1733369385154,23.776884,236.46,236.09,0.84475168]
[1733369385481,31.7164,236.47,236.1,0.12549]
[1733369385655,12.32623136,236.47,236.12,23.902374]
[1733369385863,1.75413136,236.47,236.15,2.2559]
[1733369386063,10.5702,236.52,236.17,23.776884]
[1733369386373,10.5678,236.57,236.2,0.12549]
[1733369386682,12.32494533,236.57,236.21,23.776884]
[1733369386877,12.32494533,236.57,236.24,0.12549]
[1733369387092,10.5657,236.62,236.26,0.12549]
[1733369387289,10.5657,236.62,236.28,0.12549]
[1733369387582,10.5657,236.62,236.29,23.776884]
[1733369387764,10.5657,236.62,236.31,23.776884]
[1733369387970,10.5657,236.62,236.33,23.776884]
[1733369388158,10.5657,236.62,236.25,12.8379]
[1733369388159,0.4957578,236.65,236.35,23.776884]
[1733369388359,0.4957578,236.65,236.39,23.776884]
[1733369388578,10.5645,236.64,236.38,2.2559]
[1733369389692,31.6936,236.64,236.22,2.2559]
[1733369389861,10.5063,236.63,236.22,2.2559]
[1733369390182,23.776884,236.62,236.22,2.2559]
[1733369390383,127.71340743,236.58,236.22,2.2559]
[1733369390681,23.776884,236.57,235.99,2.2559]
[1733369390870,23.776884,236.57,236.0,0.84468345]
[1733369391075,23.776884,236.57,236.01,0.12549]
[1733369391375,6.3851,236.54,236.02,0.84468275]
[1733369391575,23.776884,236.47,236.02,0.84468275]
[1733369392196,23.776884,236.47,236.0,0.84500538]
[1733369392369,23.776884,236.47,235.99,2.2559]
[1733369392571,45.2499048,236.48,236.0,0.84492398]
[1733369393171,23.776884,236.46,236.0,11.43812398]
[1733369393586,31.7164,236.47,236.01,0.12549]
[1733369393792,31.7164,236.47,236.02,0.84476629]
[1733369393989,52.8607,236.47,236.02,0.84476629]
[1733369394194,52.8607,236.47,236.03,23.776884]
[1733369394396,61.15596545,236.47,235.99,2.2559]
[1733369394692,23.776884,236.45,235.99,2.2559]
[1733369395074,31.7205,236.44,235.99,2.2559]
[1733369395267,23.776884,236.43,236.0,0.84507512]
[1733369395690,10.153,236.42,236.0,0.84507512]
[1733369395998,23.776884,236.41,236.0,0.84507512]
[1733369396195,31.7257,236.4,236.0,0.84507512]
[1733369396371,23.776884,236.39,236.0,0.84507512]
[1733369396572,31.7257,236.4,236.0,11.43817512]
[1733369396769,31.7257,236.4,236.01,23.776884]
[1733369397090,31.7257,236.4,236.03,23.776884]
[1733369397289,31.7257,236.4,236.05,23.776884]
[1733369398090,23.776884,236.39,236.05,23.776884]
[1733369398291,23.776884,236.37,236.05,23.776884]
[1733369398791,23.776884,236.37,236.01,0.84483891]
[1733369398997,23.776884,236.37,236.02,23.776884]
[1733369399193,23.776884,236.37,236.04,23.776884]
[1733369399370,23.776884,236.37,236.06,23.776884]
[1733369399709,10.5761,236.38,236.08,23.776884]
[1733369399995,10.5761,236.38,236.02,10.5923]
[1733369399996,10.5761,236.38,236.1,23.776884]
[1733369400194,1.77050325,236.4,236.12,23.776884]
[1733369400493,21.1514,236.39,236.01,23.776884]
[1733369400674,21.1514,236.39,236.03,23.776884]
[1733369400875,21.1514,236.39,236.04,0.8447171]
[1733369401096,21.1514,236.39,236.05,23.776884]
[1733369401277,52.8785,236.39,235.99,2.2559]
[1733369401474,23.776884,236.38,236.0,0.84505049]
[1733369401685,23.776884,236.38,236.01,0.12549]
[1733369401888,6.54178105,236.41,236.03,0.12549]
[1733369402088,18.49589698,236.42,236.05,0.12549]
[1733369402405,31.7244,236.41,236.04,0.84463326]
[1733369402569,31.7244,236.41,235.99,2.2559]
[1733369402570,31.7244,236.41,236.06,0.84463326]
[1733369402771,31.7244,236.41,235.99,2.2559]
[1733369402772,10.5748,236.41,236.02,0.12549]
[1733369402966,18.49589698,236.42,236.04,0.12549]
[1733369402967,1.80111593,236.42,236.04,0.12549]
[1733369403193,6.54178105,236.45,236.1,0.12549]
[1733369403399,6.54178105,236.45,236.09,2.2559]
[1733369403400,10.3004,236.51,236.12,0.12549]
[1733369403603,10.5708,236.5,236.14,0.12549]
[1733369403894,10.5708,236.5,236.16,23.776884]
[1733369404100,10.5708,236.5,236.18,23.776884]
[1733369404305,10.5708,236.5,236.13,2.2559]
[1733369404306,10.5708,236.5,236.2,23.776884]
[1733369404474,10.5708,236.5,236.22,23.776884]
[1733369404676,10.5708,236.5,236.14,0.84419482]
[1733369404977,10.5688,236.55,236.15,23.902374]
[1733369405192,6.54178105,236.58,236.17,23.902374]
[1733369405378,6.54178105,236.58,236.21,0.12549]
[1733369405580,6.3494,236.59,236.23,23.902374]
[1733369405809,6.54178105,236.61,236.27,23.902374]
[1733369405972,10.5654,236.62,236.29,23.776884]
[1733369406172,10.5654,236.62,236.31,23.776884]
[1733369406497,10.5654,236.62,236.33,23.776884]
[1733369406988,31.6963,236.62,236.27,0.8438666]
[1733369407197,31.6963,236.62,236.28,23.776884]
[1733369407403,23.776884,236.61,236.26,2.2559]
[1733369407689,52.8272,236.62,235.97,211.67032523]
[1733369407690,6.4427,236.59,236.16,2.2559]
[1733369407889,23.776884,236.58,236.16,2.2559]
[1733369408192,31.707,236.54,236.16,2.2559]
[1733369408377,23.776884,236.53,236.16,2.2559]
[1733369408573,23.776884,236.51,236.16,2.2559]
[1733369408779,6.54178105,236.53,236.16,2.2559]
[1733369408972,38.24878105,236.54,236.18,0.12549]
[1733369409174,6.54178105,236.54,236.2,0.12549]
[1733369409397,6.54178105,236.58,236.24,23.902374]
[1733369409584,10.5672,236.58,236.26,23.776884]
[1733369410269,10.5672,236.58,236.28,23.776884]
[1733369410595,10.5672,236.58,236.24,23.776884]
[1733369410805,31.7016,236.58,236.24,23.776884]
[1733369410968,31.7016,236.58,236.23,2.2559]
[1733369411172,52.836,236.58,236.23,2.2559]
[1733369411386,52.836,236.58,235.96,21.27160617]
[1733369411387,3.9379,236.57,236.14,2.2559]
[1733369411799,30.31866505,236.56,236.14,2.2559]
[1733369412092,6.54178105,236.54,236.15,10.5864]
[1733369412291,23.776884,236.51,236.16,0.84424854]
[1733369412980,23.776884,236.51,236.17,23.776884]
[1733369413180,23.776884,236.51,236.19,23.776884]
[1733369413377,23.776884,236.51,236.21,23.776884]
[1733369413581,23.776884,236.51,236.23,23.776884]
[1733369413785,10.5699,236.52,236.25,23.776884]
[1733369413989,10.5699,236.52,236.23,23.776884]
[1733369414272,10.5699,236.52,236.25,23.776884]
[1733369414891,14.5058,236.57,236.27,23.776884]
[1733369415094,14.5058,236.57,236.26,0.84410811]
[1733369415095,14.5058,236.57,236.29,23.776884]
[1733369415369,14.5058,236.57,236.26,23.776884]
[1733369415570,56.7764,236.57,236.14,12.8426]
[1733369415791,56.7764,236.57,236.16,0.12549]
[1733369416005,35.6411,236.57,236.2,0.12549]
[1733369416177,14.5058,236.57,236.21,10.5838]
[1733369416375,14.5058,236.57,236.22,0.96936422]
[1733369416787,14.5058,236.57,236.24,0.12549]
[1733369417030,14.5058,236.57,236.25,23.776884]
[1733369417196,23.776884,236.56,236.27,23.776884]
[1733369417399,23.776884,236.56,236.29,23.776884]
[1733369417580,23.776884,236.56,236.3,0.8438817]
[1733369417899,3.9379,236.57,236.31,23.776884]
[1733369418202,10.5681,236.56,236.33,23.776884]
[1733369418905,31.7043,236.56,236.23,0.84398317]
[1733369419088,31.7043,236.56,236.2,0.84414231]
[1733369419292,23.776884,236.55,236.2,0.84414231]
[1733369419490,23.776884,236.55,236.12,10.5875]
[1733369419687,23.776884,236.55,236.13,0.84443644]
[1733369420085,23.776884,236.53,236.1,2.2559]
[1733369420302,23.776884,236.53,236.11,0.84472204]
[1733369420510,23.776884,236.53,236.1,2.2559]
[1733369420687,6.54178105,236.5,236.11,0.84467462]
[1733369420888,6.54178105,236.52,236.1,2.2559]
[1733369421204,23.776884,236.49,236.1,2.2559]
[1733369421388,31.7151,236.48,236.1,2.2559]
[1733369421588,23.776884,236.47,236.1,2.2559]
[1733369421790,38.25688105,236.48,236.1,2.2559]
[1733369421791,23.776884,236.45,236.1,2.2559]
[1733369421999,30.31866505,236.45,236.1,2.2559]
[1733369422397,6.54178105,236.42,236.1,2.2559]
[1733369422600,23.776884,236.42,236.11,0.84468853]
[1733369422910,6.54178105,236.45,236.12,23.776884]
[1733369423210,16.52948105,236.46,236.14,23.776884]
[1733369423505,17.11478105,236.45,236.16,23.776884]
[1733369423712,10.573,236.45,236.18,23.776884]
[1733369424583,10.573,236.45,236.2,23.776884]
[1733369424790,10.573,236.45,236.1,2.2559]
[1733369424791,10.573,236.45,236.1,12.8441]
[1733369425110,10.573,236.45,236.12,23.776884]
[1733369425287,10.573,236.45,236.14,23.776884]
[1733369425487,10.573,236.45,236.1,12.8441]
[1733369425488,10.573,236.45,236.16,23.776884]
[1733369425897,10.5739,236.43,236.11,0.8444389]
[1733369426217,23.776884,236.42,236.11,0.8444389]
[1733369427185,23.776884,236.42,236.12,23.776884]
[1733369427514,10.5739,236.43,236.14,23.776884]
[1733369427709,10.5739,236.43,236.16,23.776884]
[1733369428010,6.54178105,236.53,236.19,0.12549]
[1733369428185,57.53932423,236.56,236.19,0.12549]
[1733369428186,10.5699,236.52,236.21,23.902374]
[1733369428388,10.5685,236.55,236.23,23.776884]
[1733369428600,10.236,236.56,236.26,0.12549]
[1733369428803,10.236,236.56,236.27,23.776884]
[1733369428990,10.236,236.56,236.29,23.776884]
[1733369429186,3.881,236.56,236.31,23.776884]
[1733369429403,10.5667,236.6,236.33,23.776884]
[1733369429603,10.5667,236.6,236.37,23.776884]
[1733369429789,10.5667,236.6,236.37,24.62057218]
[1733369429994,10.5667,236.6,236.37,23.776884]
[1733369430285,0.4957578,236.65,236.4,0.12549]
[1733369430484,0.4957578,236.65,236.41,23.776884]
[1733369430711,0.4957578,236.65,236.43,23.776884]
[1733369431011,0.4957578,236.65,236.37,23.776884]
[1733369431220,0.4957578,236.65,236.36,2.2559]
[1733369431425,3.7859,236.63,236.25,2.2559]
[1733369431593,6.4463,236.62,236.25,2.2559]
[1733369432116,30.31866505,236.6,236.11,2.2559]
[1733369432317,30.31866505,236.55,236.12,0.84446804]
[1733369432609,30.31866505,236.55,236.11,2.2559]
[1733369432803,23.776884,236.52,236.11,2.2559]
[1733369433007,10.47968105,236.47,236.11,2.2559]
[1733369433201,30.359684,236.43,236.02,0.84476458]
[1733369433406,10.24,236.38,235.89,0.84495195]
[1733369433596,23.776884,236.31,235.84,10.6004]
[1733369433908,30.31866505,236.27,235.85,0.84535527]
[1733369434094,23.776884,236.27,235.85,0.84535527]
[1733369434295,23.776884,236.27,235.86,10.5995]
[1733369434520,23.776884,236.27,235.87,0.84514095]
[1733369435401,23.776884,236.25,235.87,0.84514095]
[1733369436511,21.1596,236.3,235.88,10.5986]
[1733369436716,10.5792,236.32,235.89,0.97035963]
[1733369436921,6.5388,236.36,235.91,0.12549]
[1733369437122,21.155,236.35,235.92,0.8447203]
[1733369437303,31.7325,236.35,235.92,0.8447203]
[1733369437506,31.7325,236.35,235.93,0.12549]
[1733369437721,31.7325,236.35,235.94,0.84501249]
[1733369438132,23.776884,236.34,235.91,0.84512582]
[1733369438704,23.776884,236.34,235.9,2.2559]
[1733369438705,6.54178105,236.3,235.9,2.2559]
[1733369438910,30.31866505,236.29,235.9,2.2559]
[1733369439107,30.31866505,236.25,235.9,2.2559]
[1733369439423,31.7473,236.24,235.9,2.2559]
[1733369439621,31.7473,236.24,235.81,2.7516578]
[1733369439622,23.776884,236.23,235.81,2.7516578]
[1733369439936,31.7473,236.24,235.81,2.7516578]
[1733369439937,23.776884,236.21,235.81,2.7516578]
[1733369440144,30.31866505,236.21,235.81,2.7516578]
[1733369440313,10.1223,236.17,235.81,2.7516578]
[1733369440512,23.776884,236.16,235.81,0.4957578]
[1733369441212,10.1223,236.17,235.81,0.4957578]
[1733369441434,31.7593,236.15,235.81,0.4957578]
[1733369441635,23.776884,236.14,235.81,0.4957578]
[1733369442509,23.776884,236.12,235.81,0.4957578]
[1733369443522,31.7647,236.11,235.81,0.4957578]
[1733369443727,23.776884,236.1,235.81,0.4957578]
[1733369444528,52.9412,236.11,235.81,0.4957578]
[1733369444945,52.9412,236.11,235.82,2.2559]
[1733369445244,20.7079,236.17,235.83,0.84559267]
[1733369445450,20.7079,236.17,235.84,0.12549]
[1733369445741,10.5831,236.23,235.86,0.12549]
[1733369445912,10.5831,236.23,235.88,0.12549]
[1733369446121,10.5831,236.23,235.9,0.12549]
[1733369446336,10.5831,236.23,235.91,0.84506043]
[1733369447123,10.5806,236.29,235.94,0.12549]
[1733369447330,21.1563,236.34,235.94,0.12549]
[1733369447331,10.5779,236.34,235.94,6.39244879]
[1733369447638,10.5779,236.34,235.96,0.12549]
[1733369447955,10.5779,236.34,235.96,0.97022486]
[1733369448120,10.5779,236.34,235.97,5.69413761]
[1733369448320,10.5779,236.34,235.98,0.97018955]
[1733369448538,6.0178,236.38,235.98,6.3454394]
[1733369448740,3.7213,236.39,235.98,0.97018955]
[1733369448944,6.4515,236.48,236.0,0.12549]
[1733369449139,6.4515,236.48,236.02,0.12549]
[1733369449438,6.4515,236.48,236.01,8.52877226]
[1733369449439,10.5735,236.44,236.05,10.5909]
[1733369449616,10.5735,236.44,236.06,0.96984115]
[1733369450839,1.76582605,236.48,236.08,0.12549]
[1733369451055,6.2676,236.6,236.14,0.12549]
[1733369451056,16.8339,236.6,236.14,0.12549]
[1733369451253,16.8339,236.6,236.12,0.12549]
[1733369451254,10.5663,236.6,236.17,2.2559]
[1733369451418,10.5663,236.6,236.18,0.96930548]
[1733369451743,10.5663,236.6,236.19,10.5846]
[1733369451922,10.5663,236.6,236.2,0.84393221]
[1733369452325,31.699,236.6,236.17,2.2559]
[1733369452523,127.58081215,236.56,236.17,2.2559]
[1733369452728,23.776884,236.55,236.17,2.2559]
[1733369453442,31.707,236.54,236.17,2.2559]
[1733369453641,23.776884,236.53,236.17,2.2559]
[1733369453845,6.0036,236.52,236.05,2.2559]
[1733369454024,23.776884,236.51,236.06,0.844661]
[1733369454522,127.58081215,236.47,236.05,2.2559]
[1733369454722,23.776884,236.46,236.06,0.84483045]
[1733369455619,23.776884,236.44,236.06,0.84483045]
[1733369455825,23.776884,236.44,236.05,2.2559]
[1733369456336,23.776884,236.44,236.06,0.84482152]
[1733369457050,3.6731,236.43,236.05,2.2559]
[1733369457226,127.58081215,236.38,236.05,2.2559]
[1733369457425,55.506684,236.37,236.05,2.2559]
[1733369458424,55.506684,236.37,235.87,2.2559]
[1733369458624,55.506684,236.37,235.88,0.8452441]
[1733369458859,23.776884,236.34,235.88,0.8452441]
[1733369459057,23.776884,236.28,235.87,2.2559]
[1733369459341,23.776884,236.28,235.88,0.8454262]
[1733369459944,31.7433,236.27,235.88,0.8454262]
[1733369460153,23.776884,236.26,235.88,0.8454262]
[1733369460341,23.776884,236.26,235.87,2.2559]
[1733369460648,23.776884,236.26,235.88,0.84557572]
[1733369462097,23.776884,236.24,235.89,23.776884]
[1733369462249,3.788,236.23,235.87,2.2559]
[1733369462548,30.234784,236.19,235.87,2.2559]
[1733369463225,30.234784,236.19,235.81,0.4957578]
[1733369463421,23.776884,236.18,235.81,0.4957578]
[1733369463956,23.776884,236.16,235.81,0.4957578]
[1733369465147,127.58081215,236.11,235.81,0.4957578]
[1733369465333,23.776884,236.1,235.81,0.4957578]
[1733369466050,10.5891,236.09,235.81,0.4957578]
[1733369466251,6.1744,236.06,235.81,0.4957578]
[1733369466459,23.776884,236.0,235.81,0.4957578]
[1733369467044,3.7251,236.07,235.81,0.4957578]
[1733369467664,22.47,235.99,235.81,0.4957578]
[1733369468239,63.5349,236.09,235.82,2.2559]
[1733369468436,10.5889,236.1,235.83,0.84559627]
[1733369468767,10.5889,236.1,235.84,23.776884]
[1733369468941,10.5889,236.1,235.86,23.776884]
[1733369469142,10.5889,236.1,235.83,23.776884]
[1733369469358,10.5889,236.1,235.83,24.6225105]
[1733369469661,10.5889,236.1,235.82,2.2559]
[1733369470054,21.1774,236.1,235.82,2.2559]
[1733369470360,10.586,236.16,235.82,2.2559]
[1733369470361,10.586,236.16,235.84,23.776884]
[1733369470564,10.586,236.16,235.86,23.776884]
[1733369470941,10.586,236.16,235.83,23.776884]
[1733369471150,10.586,236.16,235.82,2.2559]
[1733369471468,23.776884,236.15,235.82,2.2559]
[1733369471960,31.758,236.16,235.82,2.2559]
[1733369471961,22.47,235.98,235.82,2.2559]
[1733369472168,23.776884,235.97,235.82,2.2559]
[1733369472651,23.776884,236.01,235.82,2.2559]
[1733369472965,10.5903,236.07,235.82,2.2559]
[1733369473336,31.7704,236.07,235.82,2.2559]
[1733369474268,23.776884,236.06,235.82,2.2559]
[1733369475168,23.776884,235.95,235.81,0.4957578]
[1733369475373,27.423984,235.95,235.81,5.78e-05]
[1733369475549,27.423984,235.95,235.63,2.2559]
[1733369476175,12.68,235.93,235.63,2.2559]
[1733369476355,23.776884,235.92,235.63,2.2559]
[1733369476563,31.7877,235.94,235.63,2.2559]
[1733369476777,23.776884,235.93,235.63,2.2559]
[1733369477352,54.78174176,235.94,235.63,3.10239007]
[1733369477657,54.78174176,235.94,235.63,2.2559]
[1733369478863,54.78174176,235.94,235.63,3.10234136]
[1733369479056,52.9795,235.94,235.63,3.10234136]
[1733369479581,52.9795,235.94,235.63,2.2559]
[1733369480472,23.776884,235.93,235.63,2.2559]
[1733369480775,52.9795,235.94,235.63,2.2559]
[1733369480976,52.9795,235.94,235.64,0.84650339]
[1733369481154,31.7877,235.94,235.64,0.84650339]
[1733369481472,22.47,235.96,235.64,0.84650339]
[1733369481473,22.47,235.96,235.69,0.12549]
[1733369481677,10.5864,236.15,235.75,0.12549]
[1733369481877,10.5864,236.15,235.79,0.12549]
[1733369482053,10.5864,236.15,235.8,23.776884]
[1733369482252,10.5829,236.23,235.82,23.776884]
[1733369482557,10.5829,236.23,235.78,2.2559]
[1733369482558,10.5829,236.23,235.83,0.8454814]
[1733369482749,127.58081215,236.2,235.8,23.776884]
[1733369482949,127.58081215,236.2,235.78,2.2559]
[1733369483148,127.58081215,236.11,235.78,2.2559]
[1733369483768,127.58081215,236.2,235.78,2.2559]
[1733369484451,10.5846,236.19,235.78,2.2559]
[1733369485350,31.7539,236.19,235.78,2.2559]
[1733369485958,31.7539,236.19,235.79,24.62267238]
[1733369486151,31.7539,236.19,235.79,23.776884]
[1733369486770,31.7539,236.19,235.8,0.97122174]
[1733369487083,31.7539,236.19,235.82,0.12549]
[1733369487381,31.7539,236.19,235.85,2.2559]
[1733369487554,31.7539,236.19,235.86,24.62222022]
[1733369487753,31.7539,236.19,235.87,0.12549]
[1733369487954,10.5846,236.19,235.91,0.12549]
[1733369488276,10.5846,236.19,235.89,2.2559]
[1733369489152,23.776884,236.18,235.89,2.2559]
[1733369489561,1.80201297,236.23,235.89,2.2559]
[1733369489562,23.776884,236.16,235.89,2.2559]
[1733369490573,23.776884,236.14,235.89,2.2559]
[1733369491990,29.844884,236.14,235.89,2.2559]
[1733369492157,31.59938154,236.14,235.89,2.2559]
[1733369492649,23.776884,236.12,235.89,2.2559]
[1733369492962,23.776884,236.12,235.65,2.2559]
[1733369493164,23.776884,236.12,235.66,0.84613478]
[1733369493364,127.58081215,236.11,235.66,0.84613478]
[1733369493673,23.776884,236.1,235.66,0.84622033]
[1733369493856,23.776884,236.1,235.69,0.12549]
[1733369494057,56.5561,236.13,235.7,2.38139]
[1733369494252,52.9367,236.13,235.74,0.12549]
[1733369494565,52.9367,236.13,235.78,0.12549]
[1733369494774,10.5873,236.13,235.83,2.38139]
[1733369494983,10.5873,236.13,235.87,0.12549]
[1733369495285,10.5873,236.13,235.88,2.2559]
[1733369495664,10.5873,236.13,235.89,23.776884]
[1733369495853,10.5873,236.13,235.91,23.776884]
[1733369496058,10.5873,236.13,235.93,23.776884]
[1733369496255,10.5873,236.13,235.94,0.84525096]
[1733369496478,10.5873,236.13,235.93,23.776884]
[1733369496684,31.7519,236.21,235.93,23.776884]
[1733369496872,10.5838,236.21,235.96,23.902374]
[1733369497083,10.5838,236.21,235.95,2.2559]
[1733369497084,10.5838,236.21,235.98,23.902374]
[1733369497283,1.71483077,236.22,235.98,23.902374]
[1733369497284,1.71483077,236.22,236.0,23.776884]
[1733369497589,10.5818,236.26,236.02,23.776884]
[1733369498284,12.29331455,236.26,236.02,23.776884]
[1733369498462,33.45641455,236.26,235.96,23.776884]
[1733369498663,33.45641455,236.26,235.98,23.776884]
[1733369498968,33.45641455,236.26,235.95,2.2559]
[1733369499606,23.776884,236.23,235.95,2.2559]
[1733369501890,31.75,236.22,235.95,2.2559]
[1733369502091,23.776884,236.21,235.95,2.2559]
[1733369503363,31.7527,236.2,235.95,2.2559]
[1733369503566,23.776884,236.19,235.95,2.2559]
[1733369504393,52.9212,236.2,235.95,2.2559]
[1733369505389,42.337,236.2,235.95,2.2559]
[1733369505558,3.7248,236.18,235.95,2.2559]
[1733369505763,23.776884,236.17,235.95,2.2559]
[1733369507265,31.758,236.16,235.95,2.2559]
[1733369507886,23.776884,236.15,235.95,2.2559]
[1733369508291,31.7607,236.14,235.95,2.2559]
[1733369510170,10.5869,236.14,235.95,2.2559]
[1733369511278,21.172,236.16,235.95,2.2559]
[1733369512289,23.776884,236.15,235.95,2.2559]
[1733369512591,10.5846,236.19,235.95,2.2559]
[1733369512979,10.5846,236.19,235.96,0.84512175]
[1733369513193,10.5815,236.26,235.96,0.84512175]
[1733369513385,31.7446,236.26,235.96,0.84512175]
[1733369513782,10.5815,236.26,235.97,0.12549]
[1733369514092,10.5795,236.31,235.99,2.38139]
[1733369514264,10.5795,236.31,236.03,0.12549]
[1733369514471,10.5795,236.31,236.03,0.97013986]
[1733369514987,4.03064538,236.36,236.03,0.97013986]
[1733369514988,10.5775,236.35,236.03,0.97013986]
[1733369515189,10.5775,236.35,236.04,2.2559]
[1733369515400,10.5775,236.35,236.05,0.84449603]
[1733369516000,0.4957578,236.41,236.06,2.2559]
[1733369516177,0.4957578,236.41,236.08,2.2559]
[1733369516370,0.4957578,236.41,236.1,2.2559]
[1733369516584,0.4957578,236.41,236.11,0.84425002]
[1733369516980,0.4957578,236.41,236.12,2.2559]
[1733369517185,0.4957578,236.41,236.13,0.84425453]
[1733369517395,11.0707578,236.41,236.13,0.84425453]
[1733369517991,0.12549,236.4,236.13,0.84425453]
[1733369518586,0.12549,236.4,236.12,2.2559]
[1733369518787,23.902374,236.4,236.12,2.2559]
[1733369519295,32.2203578,236.41,236.12,2.2559]
[1733369519296,23.902374,236.38,236.12,2.2559]
[1733369520603,0.12549,236.36,236.12,2.2559]
[1733369520906,23.902374,236.36,236.12,2.2559]
[1733369522404,0.12549,236.36,236.12,2.2559]
[1733369522602,10.5766,236.37,236.12,2.2559]
[1733369523200,0.12549,236.36,236.12,2.2559]
[1733369524305,23.902374,236.36,236.12,2.2559]
[1733369524491,10.5766,236.37,236.13,0.84472421]
[1733369524806,127.69898992,236.63,236.15,0.12549]
[1733369525001,10.5725,236.47,236.17,2.2559]
[1733369525303,10.5725,236.47,236.19,23.776884]
[1733369525505,10.5725,236.47,236.2,0.84411375]
[1733369525725,0.12549,236.4,236.21,23.776884]
[1733369526008,1.71738872,236.5,236.23,23.776884]
[1733369526184,0.4957578,236.65,236.25,23.902374]
[1733369526185,10.565,236.63,236.25,23.902374]
[1733369526385,10.565,236.63,236.27,23.902374]
[1733369526593,12.34673848,236.63,236.29,23.776884]
[1733369526905,0.12549,236.62,236.3,0.84388791]
[1733369527206,0.12549,236.62,236.21,23.776884]
[1733369527411,0.12549,236.62,236.23,1.7602]
[1733369527616,23.902374,236.62,236.23,1.7602]
[1733369527903,12.34673848,236.63,236.24,0.12549]
[1733369528100,12.34673848,236.63,236.24,0.96929049]
[1733369528610,12.34673848,236.63,236.24,0.84380049]
[1733369528902,12.34673848,236.63,236.25,23.776884]
[1733369529106,12.34673848,236.63,236.27,23.776884]
[1733369529288,12.34673848,236.63,236.29,23.776884]
[1733369529289,31.695,236.63,236.29,23.776884]
[1733369529493,31.695,236.63,236.31,23.776884]
[1733369529704,31.695,236.63,236.33,23.776884]
[1733369529882,31.695,236.63,236.34,0.84379993]
[1733369530085,159.39398992,236.63,236.23,1.7602]
[1733369530488,0.12549,236.61,236.23,1.7602]
[1733369530693,0.12549,236.53,236.23,1.7602]
[1733369530901,0.12549,236.51,236.0,1.7603]
[1733369531098,0.12549,236.42,236.0,1.7603]
[1733369531286,0.12549,236.35,236.0,1.7603]
[1733369531610,23.902374,236.33,236.0,1.7603]
[1733369531784,0.12549,236.31,235.87,1.7603]
[1733369531986,6.5848,236.32,235.87,1.7603]
[1733369531987,0.12549,236.26,235.87,1.7603]
[1733369532208,23.902374,236.26,235.88,0.84557015]
[1733369533411,0.12549,236.24,235.88,0.84557015]
[1733369533709,23.902374,236.24,235.88,0.84557015]
[1733369534704,0.12549,236.22,235.88,0.84557015]
[1733369535010,23.902374,236.22,235.88,0.84557015]
[1733369535211,2.2914,236.21,235.87,1.7603]
[1733369535389,23.776884,236.2,235.87,1.7603]